bitfinex/quotes_BTCUSD_20240721
["timestamp","ask_amount","ask_price","bid_price","bid_amount"]
[1721595514692,0.07348942,67885.0,67870.0,0.00027532]
[1721595514915,0.147323,67878.0,67870.0,0.00027532]
[1721595515117,0.1,67877.0,67871.0,0.00027532]
[1721595515554,0.33988942,67892.0,67876.0,0.00027532]
[1721595515555,0.36807542,67892.0,67876.0,0.00027532]
[1721595515760,0.147303,67887.0,67876.0,0.00027532]
[1721595515991,0.36807542,67892.0,67866.0,0.002794]
[1721595515992,0.059027,67884.0,67883.0,0.00027532]
[1721595516188,0.294551,67900.0,67883.0,0.00027532]
[1721595516189,0.441859,67895.0,67883.0,0.00027532]
[1721595516394,0.147291,67893.0,67883.0,0.00027532]
[1721595516612,0.300474,67895.0,67884.0,0.1359]
[1721595516613,0.14701991,67892.0,67884.0,0.1359]
[1721595516837,0.005902,67895.0,67889.0,0.00027532]
[1721595517047,0.005902,67895.0,67884.0,0.1359]
[1721595517048,0.005902,67895.0,67891.0,0.00027532]
[1721595517265,0.005902,67895.0,67884.0,0.1359]
[1721595517266,0.005902,67895.0,67894.0,0.00027532]
[1721595517482,0.07348942,67907.0,67897.0,0.00027532]
[1721595517713,0.05901,67903.0,67899.0,0.00027532]
[1721595517913,0.14701991,67906.0,67899.0,0.00027532]
[1721595518122,0.00084,67911.0,67908.0,0.00027532]
[1721595518323,0.00084,67911.0,67886.0,0.07348942]
[1721595518324,0.00084,67911.0,67910.0,0.00027532]
[1721595518538,0.059843,67911.0,67910.0,0.00027532]
[1721595519156,0.00084,67911.0,67910.0,0.00027532]
[1721595520761,0.00084,67911.0,67910.0,0.12257298]
[1721595521761,0.00084,67911.0,67910.0,0.00027532]
[1721595524564,0.00084,67911.0,67905.0,0.0751]
[1721595524565,0.148092,67911.0,67905.0,0.0751]
[1721595524804,0.00084,67911.0,67905.0,0.0751]
[1721595525015,0.147264,67905.0,67904.0,0.00027532]
[1721595525448,0.441793,67905.0,67904.0,0.00027532]
[1721595525601,0.147264,67905.0,67904.0,0.00027532]
[1721595526221,0.147264,67905.0,67894.0,0.00027532]
[1721595526222,0.44154891,67905.0,67894.0,0.00027532]
[1721595526607,0.07348942,67909.0,67894.0,0.00027532]
[1721595526608,0.07348942,67902.0,67894.0,0.00027532]
[1721595526769,0.17001991,67901.0,67893.0,0.00027532]
[1721595526968,0.17001991,67901.0,67894.0,0.00027532]
[1721595526969,0.441858,67895.0,67894.0,0.00027532]
[1721595527185,0.441858,67895.0,67886.0,0.0662]
[1721595527186,0.14729,67893.0,67892.0,0.00027532]
[1721595527388,0.14729,67893.0,67886.0,0.0662]
[1721595527389,0.07331219,67894.0,67886.0,0.00027532]
[1721595527529,0.147303,67887.0,67886.0,0.00027532]
[1721595527734,0.147303,67887.0,67884.0,0.0793]
[1721595527735,0.147298,67890.0,67889.0,0.00027532]
[1721595528021,0.294564,67897.0,67879.0,0.0662]
[1721595528022,0.294624,67883.0,67879.0,0.0662]
[1721595528204,0.294624,67883.0,67851.0,0.33086222]
[1721595528205,0.07348942,67895.0,67843.0,0.00027532]
[1721595528206,0.1552,67862.0,67843.0,0.00027532]
[1721595528415,0.1552,67862.0,67832.0,0.1455]
[1721595528416,0.294801,67843.0,67836.0,0.00027532]
[1721595528615,0.07348942,67850.0,67832.0,0.1455]
[1721595528616,0.07348942,67850.0,67840.0,0.00027532]
[1721595528762,0.2664,67851.0,67840.0,0.00027532]
[1721595528763,0.023,67849.0,67840.0,0.00027532]
[1721595528983,0.294786,67846.0,67840.0,0.00027532]
[1721595529190,0.147403,67841.0,67840.0,0.00027532]
[1721595529409,0.14701991,67848.0,67841.0,0.00027532]
[1721595529610,0.294791,67845.0,67841.0,0.00027532]
[1721595529835,0.023,67847.0,67841.0,0.00027532]
[1721595529836,0.147401,67842.0,67841.0,0.00027532]
[1721595530072,0.023,67847.0,67836.0,0.00027532]
[1721595530231,0.023,67847.0,67820.0,0.0153859]
[1721595530232,0.294807,67841.0,67833.0,0.00027532]
[1721595530431,0.147418,67834.0,67833.0,0.00027532]
[1721595530897,0.294807,67841.0,67836.0,0.00027532]
[1721595531084,0.294807,67841.0,67822.0,0.0662]
[1721595531085,0.059061,67843.0,67841.0,0.00027532]
[1721595531291,0.442203,67842.0,67841.0,0.00027532]
[1721595531704,0.29479,67845.0,67841.0,0.00027532]
[1721595532044,0.123,67850.0,67836.0,0.00027532]
[1721595532045,0.147412,67837.0,67836.0,0.00027532]
[1721595532463,0.294807,67841.0,67837.0,0.00027532]
[1721595532684,0.2948,67843.0,67837.0,0.00027532]
[1721595532883,0.14701991,67844.0,67837.0,0.00027532]
[1721595533088,0.14741,67838.0,67837.0,0.00027532]
[1721595533292,0.29479,67845.0,67840.0,0.00027532]
[1721595533569,0.294775,67849.0,67841.0,0.00027532]
[1721595533772,0.147398,67844.0,67841.0,0.00027532]
[1721595533999,0.147399,67843.0,67841.0,0.00027532]
[1721595534205,0.294785,67846.0,67825.0,0.002794]
[1721595534206,0.059057,67847.0,67846.0,0.00027532]
[1721595534426,0.206447,67847.0,67846.0,0.00027532]
[1721595534627,0.059057,67847.0,67846.0,0.00027532]
[1721595534848,0.147388,67848.0,67846.0,0.00027532]
[1721595535255,0.1,67854.0,67846.0,0.00027532]
[1721595535465,0.46477491,67853.0,67846.0,0.00027532]
[1721595535672,0.1,67852.0,67846.0,0.00027532]
[1721595535882,0.14739,67847.0,67846.0,0.00027532]
[1721595536088,0.44217,67847.0,67846.0,0.00027532]
[1721595536312,0.73695,67847.0,67846.0,0.00027532]
[1721595536515,0.14739,67847.0,67846.0,0.00027532]
[1721595537872,0.44217,67847.0,67846.0,0.00027532]
[1721595538234,0.73695,67847.0,67846.0,0.00027532]
[1721595538546,0.73695,67847.0,67827.0,0.002794]
[1721595538547,0.147383,67850.0,67849.0,0.00027532]
[1721595538750,0.29476,67852.0,67849.0,0.00027532]
[1721595538994,0.147383,67850.0,67849.0,0.00027532]
[1721595540006,0.44215,67850.0,67849.0,0.00027532]
[1721595540181,0.059052,67854.0,67853.0,0.00027532]
[1721595540386,0.22868942,67871.0,67839.0,0.0662]
[1721595540387,0.0631,67874.0,67863.0,0.00027532]
[1721595540601,0.0631,67874.0,67841.0,0.05]
[1721595540602,0.05904,67867.0,67865.0,0.00027532]
[1721595540805,0.05904,67867.0,67847.0,0.05]
[1721595540806,0.05904,67867.0,67866.0,0.00027532]
[1721595540999,0.294642,67879.0,67871.0,0.00027532]
[1721595541264,0.197333,67874.0,67873.0,0.00027532]
[1721595541463,0.147333,67874.0,67873.0,0.00027532]
[1721595541595,0.294625,67883.0,67876.0,0.00027532]
[1721595541798,0.206357,67877.0,67876.0,0.00027532]
[1721595541999,0.147325,67877.0,67876.0,0.00027532]
[1721595542198,0.441975,67877.0,67876.0,0.00027532]
[1721595542567,0.736625,67877.0,67876.0,0.00027532]
[1721595542791,0.736625,67877.0,67864.0,0.066]
[1721595542792,0.29466,67875.0,67866.0,0.00027532]
[1721595542989,0.147338,67871.0,67870.0,0.00027532]
[1721595543192,0.059028,67881.0,67873.0,0.00027532]
[1721595543469,0.147331,67874.0,67873.0,0.00027532]
[1721595543843,0.07348942,67878.0,67873.0,0.00027532]
[1721595544062,0.147331,67874.0,67873.0,0.00027532]
[1721595544222,0.1,67879.0,67874.0,0.00027532]
[1721595544427,0.147329,67875.0,67874.0,0.00027532]
[1721595544633,0.441988,67875.0,67874.0,0.00027532]
[1721595544849,0.147339,67871.0,67869.0,0.00027532]
[1721595545074,0.441988,67875.0,67874.0,0.00027532]
[1721595545278,0.1,67879.0,67877.0,0.00027532]
[1721595545480,0.147321,67879.0,67877.0,0.00027532]
[1721595545911,0.159028,67881.0,67877.0,0.00027532]
[1721595546101,0.1,67881.0,67877.0,0.00027532]
[1721595546505,0.294637,67880.0,67877.0,0.00027532]
[1721595546707,0.1,67881.0,67877.0,0.00027532]
[1721595546708,0.147323,67878.0,67877.0,0.00027532]
[1721595547140,0.441969,67878.0,67877.0,0.00027532]
[1721595547345,0.441969,67878.0,67865.0,0.002794]
[1721595547346,0.147325,67877.0,67876.0,0.00027532]
[1721595547807,0.059026,67883.0,67882.0,0.00027532]
[1721595548055,0.4744,67890.0,67865.0,0.002794]
[1721595548056,0.07348942,67887.0,67884.0,0.00027532]
[1721595548292,0.441922,67885.0,67884.0,0.00027532]
[1721595548498,0.541922,67885.0,67884.0,0.00027532]
[1721595549535,0.836537,67885.0,67884.0,0.00027532]
[1721595549963,0.247307,67885.0,67884.0,0.00027532]
[1721595550163,0.294611,67886.0,67884.0,0.00027532]
[1721595550365,0.736537,67885.0,67884.0,0.00027532]
[1721595550718,0.147307,67885.0,67884.0,0.00027532]
[1721595550925,0.441922,67885.0,67884.0,0.00027532]
[1721595551123,0.441922,67885.0,67879.0,0.00027532]
[1721595551124,0.147318,67880.0,67879.0,0.00027532]
[1721595551322,0.294615,67885.0,67884.0,0.00027532]
[1721595551528,0.441922,67885.0,67884.0,0.00027532]
[1721595551725,0.441922,67885.0,67876.0,0.00027532]
[1721595551726,0.80869562,67885.0,67876.0,0.00027532]
[1721595551925,0.80869562,67885.0,67855.0,0.147372]
[1721595551926,0.80869562,67885.0,67863.0,0.00027532]
[1721595551927,0.33988942,67877.0,67863.0,0.00027532]
[1721595552134,0.44206,67864.0,67863.0,0.00027532]
[1721595552348,0.147353,67864.0,67863.0,0.00027532]
[1721595552539,0.44206,67864.0,67863.0,0.00027532]
[1721595552952,0.147351,67866.0,67865.0,0.00027532]
[1721595553412,0.147351,67866.0,67850.0,0.14701991]
[1721595553413,0.147336,67872.0,67871.0,0.00027532]
[1721595553537,0.29466,67875.0,67851.0,0.002794]
[1721595553538,0.147335,67873.0,67872.0,0.00027532]
[1721595553734,0.442002,67873.0,67872.0,0.00027532]
[1721595553995,0.147335,67873.0,67872.0,0.00027532]
[1721595554482,0.14733,67875.0,67874.0,0.00027532]
[1721595554690,0.123,67884.0,67868.0,0.066]
[1721595554691,0.1,67884.0,67882.0,0.00027532]
[1721595554886,0.147312,67883.0,67882.0,0.00027532]
[1721595555336,0.294607,67887.0,67882.0,0.00027532]
[1721595555337,0.147309,67885.0,67882.0,0.00027532]
[1721595555504,0.147309,67885.0,67884.0,0.00027532]
[1721595555710,0.147304,67887.0,67886.0,0.00027532]
[1721595556459,0.441911,67887.0,67886.0,0.00027532]
[1721595556659,0.768975,67895.0,67886.0,0.00027532]
[1721595556660,0.294563,67898.0,67894.0,0.00027532]
[1721595556865,0.147284,67896.0,67895.0,0.00027532]
[1721595557067,0.441852,67896.0,67895.0,0.00027532]
[1721595557385,0.795435,67896.0,67895.0,0.00027532]
[1721595557610,0.73642,67896.0,67895.0,0.00027532]
[1721595558689,0.059014,67897.0,67890.0,0.00027532]
[1721595558854,0.059014,67897.0,67885.0,0.00027532]
[1721595558855,0.147305,67886.0,67885.0,0.00027532]
[1721595559088,0.441916,67886.0,67885.0,0.00027532]
[1721595560926,0.147305,67886.0,67885.0,0.00027532]
[1721595562132,0.441916,67886.0,67885.0,0.00027532]
[1721595562867,0.294641,67879.0,67878.0,0.00027532]
[1721595563032,0.51545042,67879.0,67878.0,0.00027532]
[1721595563193,0.88559142,67879.0,67878.0,0.00027532]
[1721595563402,0.88559142,67879.0,67860.0,0.002794]
[1721595563404,0.7368,67861.0,67860.0,0.002794]
[1721595563609,0.7368,67861.0,67853.0,0.00027532]
[1721595563610,0.44124471,67855.0,67854.0,0.002794]
[1721595563811,0.736875,67854.0,67853.0,0.00027532]
[1721595564010,1.10511442,67854.0,67853.0,0.00027532]
[1721595564211,1.10456434,67854.0,67853.0,0.00027532]
[1721595564629,1.10456434,67854.0,67849.0,0.000924]
[1721595564630,1.031639,67853.0,67852.0,0.00027532]
[1721595564825,0.736885,67853.0,67852.0,0.00027532]
[1721595565316,0.736885,67853.0,67851.0,0.00027532]
[1721595565317,0.442138,67852.0,67851.0,0.00027532]
[1721595565547,0.44215,67850.0,67849.0,0.000924]
[1721595565729,0.736917,67850.0,67849.0,0.000924]
[1721595565992,0.736917,67850.0,67849.0,0.00119932]
[1721595566465,1.031684,67850.0,67849.0,0.00119932]
[1721595566927,0.736917,67850.0,67849.0,0.000924]
[1721595567153,0.736917,67850.0,67849.0,0.00119932]
[1721595568611,1.44287041,67850.0,67849.0,0.000924]
[1721595568962,1.33970391,67850.0,67849.0,0.000924]
[1721595569759,1.38970391,67850.0,67849.0,0.000924]
[1721595569980,1.73447091,67850.0,67849.0,0.000924]
[1721595570423,1.78447091,67850.0,67849.0,0.000924]
[1721595570627,1.73447091,67850.0,67849.0,0.000924]
[1721595571066,1.93143356,67850.0,67849.0,0.000924]
[1721595571266,1.73447091,67850.0,67849.0,0.000924]
[1721595571479,1.98939559,67850.0,67849.0,0.000924]
[1721595571680,2.03764318,67850.0,67849.0,0.000924]
[1721595571812,1.7827185,67850.0,67849.0,0.000924]
[1721595572034,1.73447091,67850.0,67849.0,0.000924]
[1721595573575,1.17870391,67850.0,67849.0,0.000924]
[1721595574173,0.736917,67850.0,67849.0,0.000924]
[1721595574797,1.031684,67850.0,67849.0,0.000924]
[1721595575179,0.736917,67850.0,67849.0,0.000924]
[1721595575600,1.031684,67850.0,67849.0,0.000924]
[1721595576564,0.736917,67850.0,67849.0,0.000924]
[1721595578006,1.031684,67850.0,67849.0,0.000924]
[1721595578262,1.17870391,67850.0,67849.0,0.000924]
[1721595578685,1.20170391,67850.0,67849.0,0.000924]
[1721595580242,1.20170391,67850.0,67833.0,0.00027532]
[1721595580243,0.589612,67841.0,67833.0,0.00027532]
[1721595580445,0.58061991,67850.0,67829.0,0.00027532]
[1721595580446,0.442281,67830.0,67829.0,0.00027532]
[1721595580671,0.737135,67830.0,67829.0,0.00027532]
[1721595581290,0.737135,67830.0,67820.0,0.16240581]
[1721595581291,0.2664,67832.0,67820.0,0.0153859]
[1721595581643,1.032125,67821.0,67820.0,0.0153859]
[1721595582169,1.298525,67821.0,67820.0,0.0153859]
[1721595583372,0.07348942,67832.0,67820.0,0.0153859]
[1721595583373,0.44232,67824.0,67823.0,0.00027532]
[1721595583553,0.7372,67824.0,67823.0,0.00027532]
[1721595583691,0.737232,67821.0,67820.0,0.08196122]
[1721595584050,0.737232,67821.0,67820.0,0.01566122]
[1721595584831,1.03176667,67821.0,67820.0,0.01566122]
[1721595585087,0.73687367,67821.0,67820.0,0.01566122]
[1721595586878,0.44198067,67821.0,67820.0,0.01566122]
[1721595587079,0.147433,67827.0,67826.0,0.00027532]
[1721595587282,0.4423,67827.0,67826.0,0.00027532]
[1721595587673,0.737168,67827.0,67826.0,0.00027532]
[1721595587876,0.147433,67827.0,67826.0,0.00027532]
[1721595588284,0.147433,67827.0,67820.0,0.0153859]
[1721595588285,0.294873,67826.0,67820.0,0.01345522]
[1721595588486,0.147441,67824.0,67821.0,0.14701991]
[1721595589102,0.294869,67827.0,67821.0,0.14701991]
[1721595589308,0.294869,67827.0,67820.0,0.01345522]
[1721595589309,0.294893,67821.0,67820.0,0.01345522]
[1721595589511,1.17914491,67821.0,67820.0,0.01345522]
[1721595589713,0.737232,67821.0,67820.0,0.01345522]
[1721595590125,0.837232,67821.0,67820.0,0.01345522]
[1721595590752,0.737232,67821.0,67820.0,0.01345522]
[1721595591968,0.14744,67824.0,67820.0,0.01345522]
[1721595592171,0.294862,67829.0,67820.0,0.01345522]
[1721595592172,0.002794,67823.0,67821.0,0.0769]
[1721595592373,0.0512,67845.0,67821.0,0.22391991]
[1721595592374,0.294859,67830.0,67821.0,0.22391991]
[1721595592611,0.147428,67830.0,67821.0,0.22391991]
[1721595592817,0.06110019,67845.0,67825.0,0.07348942]
[1721595592818,0.294807,67841.0,67825.0,0.07348942]
[1721595592994,0.294816,67839.0,67826.0,0.14701991]
[1721595593191,0.294807,67841.0,67826.0,0.14701991]
[1721595593192,0.059067,67837.0,67826.0,0.14701991]
[1721595593425,0.147412,67837.0,67827.0,0.1993565]
[1721595593622,0.147412,67837.0,67828.0,0.26947641]
[1721595593830,0.294807,67841.0,67829.0,0.1224565]
[1721595594028,0.147413,67837.0,67830.0,0.14701991]
[1721595594205,0.29482,67838.0,67830.0,0.14701991]
[1721595594626,0.294807,67841.0,67830.0,0.14701991]
[1721595594627,0.147418,67835.0,67830.0,0.14701991]
[1721595594871,0.29453967,67839.0,67830.0,0.14701991]
[1721595595000,0.05906,67845.0,67830.0,0.14701991]
[1721595595206,0.002794,67844.0,67830.0,0.14701991]
[1721595595394,0.147404,67841.0,67832.0,0.0652]
[1721595595594,0.147401,67842.0,67833.0,0.14701991]
[1721595595897,0.1,67847.0,67834.0,0.1224461]
[1721595595898,0.147403,67841.0,67834.0,0.1224461]
[1721595596097,0.147405,67840.0,67835.0,0.14701991]
[1721595597173,0.294785,67846.0,67835.0,0.14701991]
[1721595597359,0.147393,67846.0,67836.0,0.19933875]
[1721595597529,0.059053,67852.0,67837.0,0.26946206]
[1721595597731,0.147395,67845.0,67838.0,0.12244222]
[1721595597978,0.147395,67845.0,67839.0,0.14701991]
[1721595598544,0.147397,67844.0,67839.0,0.14701991]
[1721595598749,0.059053,67852.0,67839.0,0.14701991]
[1721595598946,0.147399,67843.0,67839.0,0.14701991]
[1721595599527,0.159053,67852.0,67839.0,0.14701991]
[1721595599726,0.147395,67845.0,67839.0,0.14701991]
[1721595600397,0.294779,67848.0,67839.0,0.14701991]
[1721595600614,0.294738,67857.0,67840.0,0.18723763]
[1721595600615,0.294769,67850.0,67840.0,0.18723763]
[1721595600994,0.002794,67847.0,67844.0,0.1415]
[1721595601198,0.00084,67854.0,67845.0,0.26945641]
[1721595601407,0.00084,67854.0,67846.0,0.1224365]
[1721595601615,0.00084,67854.0,67844.0,0.1415]
[1721595601616,0.147384,67850.0,67847.0,0.26945641]
[1721595601817,0.147384,67850.0,67847.0,0.14701991]
[1721595602023,0.147388,67848.0,67847.0,0.14701991]
[1721595602228,0.294762,67852.0,67847.0,0.14701991]
[1721595602229,0.14738,67852.0,67847.0,0.14701991]
[1721595602434,0.295593,67854.0,67844.0,0.1415]
[1721595602435,0.147394,67845.0,67844.0,0.1415]
[1721595602636,0.442183,67845.0,67844.0,0.1415]
[1721595602845,0.00084,67854.0,67824.0,0.1406]
[1721595603059,0.294834,67835.0,67825.0,0.26946921]
[1721595603270,0.147403,67841.0,67826.0,0.41006921]
[1721595603477,0.002794,67852.0,67831.0,0.07348942]
[1721595603478,0.294785,67846.0,67831.0,0.07348942]
[1721595603684,0.00084,67854.0,67832.0,0.41006921]
[1721595603685,0.44093655,67850.0,67832.0,0.41006921]
[1721595603888,0.44093655,67850.0,67834.0,0.0636]
[1721595603889,0.002794,67849.0,67834.0,0.0636]
[1721595604095,0.44093655,67850.0,67834.0,0.0636]
[1721595604096,0.294764,67851.0,67836.0,0.077]
[1721595604314,0.00084,67854.0,67839.0,0.0636]
[1721595604516,0.00084,67854.0,67840.0,0.14701991]
[1721595604721,0.00084,67854.0,67841.0,0.12242579]
[1721595604921,0.00084,67854.0,67842.0,0.2694457]
[1721595604922,0.000564,67854.0,67842.0,0.2694457]
[1721595605128,0.000564,67854.0,67846.0,0.1406]
[1721595605129,0.147378,67853.0,67846.0,0.1406]
[1721595605330,0.000564,67854.0,67847.0,0.14701991]
[1721595605532,0.147939,67854.0,67847.0,0.14701991]
[1721595605704,0.147377,67853.0,67847.0,0.14701991]
[1721595605941,0.000564,67854.0,67847.0,0.14701991]
[1721595605942,0.14738,67852.0,67847.0,0.14701991]
[1721595606373,0.000564,67854.0,67847.0,0.14701991]
[1721595606584,0.14794,67854.0,67847.0,0.14701991]
[1721595607004,0.000564,67854.0,67847.0,0.14701991]
[1721595607452,0.000564,67854.0,67848.0,0.00294743]
[1721595607714,0.000564,67854.0,67846.0,0.1406]
[1721595607715,0.000564,67854.0,67849.0,0.14701991]
[1721595608322,0.000564,67854.0,67850.0,0.0664]
[1721595608543,0.000564,67854.0,67851.0,0.14701991]
[1721595609157,0.000564,67854.0,67852.0,0.08574715]
[1721595609347,0.000564,67854.0,67853.0,0.14701991]
[1721595610819,0.000564,67854.0,67853.0,0.28641991]
[1721595611227,0.002794,67869.0,67855.0,0.0765]
[1721595611440,0.44093655,67870.0,67860.0,0.0631]
[1721595611788,0.44093655,67870.0,67861.0,0.14701991]
[1721595611901,0.147338,67871.0,67861.0,0.14701991]
[1721595612108,0.294642,67879.0,67861.0,0.14701991]
[1721595612371,0.08333741,67886.0,67879.0,0.141]
[1721595612372,0.147318,67880.0,67879.0,0.141]
[1721595612571,0.059024,67886.0,67879.0,0.141]
[1721595612798,0.147318,67880.0,67879.0,0.141]
[1721595613019,0.147318,67880.0,67867.0,0.14701991]
[1721595613020,0.147318,67880.0,67868.0,0.1382]
[1721595613021,0.147329,67875.0,67868.0,0.1382]
[1721595613222,0.147339,67871.0,67869.0,0.14701991]
[1721595613430,0.14734,67870.0,67869.0,0.14701991]
[1721595613603,0.29464,67880.0,67869.0,0.14701991]
[1721595614386,0.147336,67872.0,67869.0,0.14701991]
[1721595614805,0.147333,67874.0,67869.0,0.14701991]
[1721595615003,0.147334,67873.0,67869.0,0.14701991]
[1721595616783,0.294663,67875.0,67869.0,0.14701991]
[1721595616983,0.147335,67873.0,67869.0,0.14701991]
[1721595618575,0.294649,67878.0,67869.0,0.14701991]
[1721595618777,0.147331,67874.0,67869.0,0.14701991]
[1721595619269,0.294639,67880.0,67869.0,0.14701991]
[1721595619270,0.147326,67877.0,67869.0,0.14701991]
[1721595619469,0.147323,67878.0,67869.0,0.14701991]
[1721595619697,0.147325,67877.0,67869.0,0.14701991]
[1721595619924,0.147324,67878.0,67869.0,0.14701991]
[1721595620152,0.147328,67876.0,67869.0,0.14701991]
[1721595620357,0.14734,67870.0,67869.0,0.14701991]
[1721595620563,0.07628342,67885.0,67869.0,0.14701991]
[1721595620564,0.147337,67872.0,67869.0,0.14701991]
[1721595620771,0.294661,67875.0,67869.0,0.14701991]
[1721595620974,0.147333,67874.0,67869.0,0.14701991]
[1721595621206,0.147334,67873.0,67869.0,0.14701991]
[1721595621994,0.294659,67875.0,67869.0,0.14701991]
[1721595622202,0.294647,67878.0,67869.0,0.14701991]
[1721595622405,0.147328,67876.0,67869.0,0.14701991]
[1721595622636,0.150123,67875.0,67869.0,0.14701991]
[1721595622823,0.147328,67876.0,67869.0,0.14701991]
[1721595623272,0.14733,67875.0,67869.0,0.14701991]
[1721595623705,0.294614,67886.0,67869.0,0.14701991]
[1721595623706,0.442021,67870.0,67869.0,0.14701991]
[1721595623895,0.442027,67869.0,67868.0,0.1382]
[1721595624097,0.736712,67869.0,67868.0,0.28521991]
[1721595624710,0.442027,67869.0,67868.0,0.28521991]
[1721595624917,0.294664,67874.0,67868.0,0.28521991]
[1721595625120,0.294627,67883.0,67869.0,0.14701991]
[1721595625327,0.294647,67878.0,67870.0,0.0029465]
[1721595625507,0.002794,67877.0,67871.0,0.14996618]
[1721595625715,0.002794,67884.0,67871.0,0.14996618]
[1721595625919,0.147316,67881.0,67871.0,0.14996618]
[1721595626129,0.294625,67883.0,67866.0,0.2664]
[1721595626130,0.002794,67897.0,67873.0,0.28811991]
[1721595626336,0.5197,67902.0,67874.0,0.26938751]
[1721595626337,0.002794,67880.0,67874.0,0.26938751]
[1721595626542,0.147306,67886.0,67875.0,0.12236408]
[1721595626715,0.147306,67886.0,67876.0,0.14701991]
[1721595626919,0.147306,67886.0,67877.0,0.1411]
[1721595627123,0.294599,67889.0,67878.0,0.14701991]
[1721595627324,0.00710654,67902.0,67878.0,0.14701991]
[1721595627325,0.07348942,67885.0,67878.0,0.14701991]
[1721595627486,0.441961,67879.0,67878.0,0.14701991]
[1721595627683,0.294664,67874.0,67871.0,0.0612]
[1721595627938,0.294664,67874.0,67854.0,0.18355595]
[1721595627939,0.294672,67872.0,67865.0,0.1411]
[1721595628113,0.147349,67866.0,67865.0,0.1411]
[1721595628316,0.294681,67870.0,67865.0,0.1411]
[1721595628317,0.147345,67868.0,67865.0,0.1411]
[1721595628554,0.294674,67872.0,67866.0,0.14701991]
[1721595628888,0.002794,67867.0,67866.0,0.14701991]
[1721595629070,0.147339,67871.0,67866.0,0.14701991]
[1721595629279,0.294662,67875.0,67866.0,0.14701991]
[1721595629280,0.002794,67870.0,67866.0,0.14701991]
[1721595629511,0.147337,67872.0,67866.0,0.14701991]
[1721595629741,0.147335,67873.0,67867.0,0.12238228]
[1721595629949,0.147341,67870.0,67868.0,0.14701991]
[1721595630153,0.147342,67869.0,67868.0,0.14701991]
[1721595631488,0.294661,67875.0,67868.0,0.14701991]
[1721595631656,0.147338,67871.0,67868.0,0.14701991]
[1721595631864,0.294663,67874.0,67868.0,0.14701991]
[1721595632063,0.002794,67873.0,67868.0,0.14701991]
[1721595632265,0.294663,67874.0,67868.0,0.14701991]
[1721595632665,0.147341,67870.0,67868.0,0.14701991]
[1721595632869,0.294672,67872.0,67868.0,0.14701991]
[1721595632870,0.147342,67869.0,67868.0,0.14701991]
[1721595633131,0.442027,67869.0,67868.0,0.14701991]
[1721595633302,0.102794,67884.0,67868.0,0.14701991]
[1721595633515,0.147342,67869.0,67868.0,0.14701991]
[1721595633661,0.442027,67869.0,67868.0,0.14701991]
[1721595634275,0.442027,67869.0,67868.0,0.26940745]
[1721595634679,0.442027,67869.0,67868.0,0.26940658]
[1721595635345,0.442027,67869.0,67855.0,0.0612]
[1721595635346,0.14737,67856.0,67855.0,0.0612]
[1721595635552,0.14737,67856.0,67855.0,0.3306196]
[1721595635553,0.442111,67856.0,67855.0,0.3306196]
[1721595635707,0.14737,67856.0,67855.0,0.3306196]
[1721595635933,0.147369,67857.0,67855.0,0.3306196]
[1721595636136,0.147369,67857.0,67856.0,0.2694196]
[1721595636369,0.442106,67857.0,67856.0,0.2694196]
[1721595636571,0.147369,67857.0,67856.0,0.2694196]
[1721595637379,0.294718,67862.0,67856.0,0.2694196]
[1721595637380,0.29473,67859.0,67856.0,0.2694196]
[1721595637587,0.147368,67858.0,67857.0,0.12239969]
[1721595637829,0.147368,67858.0,67857.0,0.26942501]
[1721595637992,0.147363,67860.0,67857.0,0.26942501]
[1721595638196,0.00731545,67875.0,67858.0,0.53582501]
[1721595638395,0.002794,67883.0,67865.0,0.1411]
[1721595638595,0.44093655,67885.0,67866.0,0.26942501]
[1721595638596,0.04814181,67882.0,67866.0,0.26942501]
[1721595638796,0.44093655,67885.0,67867.0,0.1224051]
[1721595638797,0.294645,67879.0,67867.0,0.1224051]
[1721595639091,0.147341,67870.0,67868.0,0.26942501]
[1721595639292,0.14734,67870.0,67869.0,0.1224051]
[1721595639491,0.14734,67870.0,67869.0,0.26942501]
[1721595639492,0.736702,67870.0,67869.0,0.26942501]
[1721595639884,0.442021,67870.0,67869.0,0.26942501]
[1721595640085,0.736702,67870.0,67869.0,0.26942501]
[1721595640799,0.442021,67870.0,67869.0,0.14701991]
[1721595641026,0.442021,67870.0,67869.0,0.26940793]
[1721595641234,0.442021,67870.0,67869.0,0.26940792]
[1721595641610,0.14734,67870.0,67869.0,0.26940792]
[1721595641824,0.29467,67873.0,67869.0,0.26940792]
[1721595641825,0.147339,67871.0,67869.0,0.26940792]
[1721595642030,0.147339,67871.0,67870.0,0.26940792]
[1721595642429,0.442015,67871.0,67870.0,0.26940792]
[1721595643488,0.442015,67871.0,67870.0,0.26940486]
[1721595643942,0.442015,67871.0,67870.0,0.14701991]
[1721595644139,0.442015,67871.0,67870.0,0.26940464]
[1721595644952,0.44174143,67871.0,67870.0,0.26940464]
[1721595645161,1.03109343,67871.0,67870.0,0.12238473]
[1721595645376,0.147358,67862.0,67858.0,0.0652]
[1721595645623,0.294692,67868.0,67859.0,0.26941737]
[1721595645827,0.147361,67861.0,67860.0,0.12239746]
[1721595646036,0.00066268,67874.0,67860.0,0.26941737]
[1721595646037,0.294681,67870.0,67860.0,0.26941737]
[1721595646241,0.00066268,67874.0,67859.0,0.07348942]
[1721595646242,0.147347,67867.0,67861.0,0.26941737]
[1721595646453,0.147347,67867.0,67862.0,0.12239746]
[1721595646665,0.147347,67867.0,67863.0,0.26941737]
[1721595646876,0.147347,67867.0,67864.0,0.12239746]
[1721595647121,0.147347,67867.0,67865.0,0.14701991]
[1721595647343,0.00066268,67874.0,67866.0,0.12533643]
[1721595647556,0.002794,67873.0,67867.0,0.41340958]
[1721595647764,0.00066268,67874.0,67868.0,0.12238967]
[1721595647991,0.00066268,67874.0,67867.0,0.50391991]
[1721595647992,0.00066268,67874.0,67869.0,0.26940958]
[1721595648205,0.00066268,67874.0,67870.0,0.12238967]
[1721595648410,0.00066268,67874.0,67869.0,0.14701991]
[1721595648411,0.00066268,67874.0,67873.0,0.14701991]
[1721595648621,0.00066268,67874.0,67873.0,0.26940958]
[1721595650096,0.00066268,67874.0,67873.0,0.26939009]